Cogmind - Beta 12 X4 @@@ ROGUE MODE // 2022.10.29 @ 11:28:00 Player: cptwinky Result: Self-destructed Performance ------------- Evolutions (1) 500 Regions Visited (4) 800 Robots Destroyed (9) 45 Value Destroyed (274) 274 Prototype IDs (0) 0 Alien Tech Used (0) 0 Bonus (0) 0 TOTAL SCORE: 1619 Bonus ------- None Cogmind --------- Core Integrity 66/400 Matter 298/300 Energy 100/100 System Corruption 4% Temperature Cool (0) Movement Core (50) Location -9/Mines Parts ------- > --- POWER (1) -------- (None) > --- PROPULSION (3) --- (None) > --- UTILITY (3) ------ (None) > --- WEAPON (2) ------- (None) > --- INVENTORY (5) ---- Ion Engine Wheel Compact Wheel Small Storage Unit Peak State ------------ > --- POWER ------------ Ion Engine > --- PROPULSION ------- Light Treads Light Treads Light Treads > --- UTILITY ---------- Improved Heat Sink Small Storage Unit > --- WEAPON ----------- Particle Cannon > --- INVENTORY -------- Ion Engine Light Treads Aluminum Leg Wheel Compact Wheel [Rating: 10] Favorites ----------- Power Ion Engine Engine Ion Engine Propulsion Light Treads Treads Light Treads Leg Aluminum Leg Utility Small Storage Unit Device Improved Heat Sink Storage Small Storage Unit Weapon Light Assault Rifle Energy Gun EM Pulse Gun Energy Cannon Particle Cannon Ballistic Gun Light Assault Rifle Build | -11 -10 -10 -9 -9 ------- Run | Scr Mat Min Mat Min Slots Evolved 2 | . . . 2 . Power . | . . . . . Propulsion 1 | . . . 1 . Utility 1 | . . . 1 . Weapon . | . . . . . Parts Attached 12 | . 4 . 6 2 Power 2 | . 1 . 1 . Engine 2 | . 1 . 1 . Core . | . . . . . Reactor . | . . . . . Propulsion 7 | . 2 . 3 2 Treads 5 | . 2 . 2 1 Leg 2 | . . . 1 1 Wheel . | . . . . . Hover . | . . . . . Flight . | . . . . . Utility 1 | . . . 1 . Device 1 | . . . 1 . Storage . | . . . . . Processor . | . . . . . Hackware . | . . . . . Protection . | . . . . . Artifact . | . . . . . Weapon 2 | . 1 . 1 . Energy Gun 1 | . 1 . . . Energy Cannon 1 | . . . 1 . Ballistic Gun . | . . . . . Ballistic Cannon . | . . . . . Launcher . | . . . . . Special Weapon . | . . . . . Impact Weapon . | . . . . . Slashing Weapon . | . . . . . Piercing Weapon . | . . . . . Special Melee Weapon . | . . . . . Unidentified Prototypes . | . . . . . Parts Lost 13 | . 4 . 2 7 Power 1 | . 1 . . . Propulsion 7 | . 2 . . 5 Utility 1 | . . . . 1 Weapon 4 | . 1 . 2 1 Highest Loss Streak 7 | . 4 . 1 7 To Critical Strikes . | . . . . . Average Slot Usage (%) 77 | . 83 85 70 55 Engine 12 | . 13 14 11 8 Treads 21 | . 7 28 26 19 Leg 6 | . 20 . 1 2 Storage 12 | . 14 14 11 8 Energy Gun 9 | . 14 14 2 . Energy Cannon 3 | . . . 7 8 Ballistic Gun 11 | . 14 14 7 . Naked Turns 5 | . . . . 5 Heaviest Build 15 | 10 13 13 15 15 Greatest Support 60 | 20 40 40 60 60 Greatest Overweight (x) 1 | . 1 . . 1 Average Overweight (x) . | . . . . . Largest Inventory Capacity 8 | 8 8 8 8 8 Average Capacity 7 | 8 8 8 8 7 Most Carried 6 | 6 6 2 5 5 Average Carried 3 | 6 4 2 3 4 Final Capacity 8 | 8 8 8 8 5 Final Carried 6 | 6 2 2 5 4 Class Distribution -------------------- 92% | Mutant 7% | Scavenger-Mutant Dominant Class ---------------- Mutant | -10/Materials Mutant | -10/Mines Mutant | -9/Materials Scavenger-Mutant | -9/Mines Resources | -11 -10 -10 -9 -9 ----------- Run | Scr Mat Min Mat Min Matter Collected 277 | 193 . 20 61 3 Remotely . | . . . . . Salvage Created 347 | . . 28 319 . Parts 20 | . . . 20 . Haulers Intercepted . | . . . . . Recyclers Shooed . | . . . . . Parts Field Recycled . | . . . . . Retrieved Matter . | . . . . . Parts Self-Destructed . | . . . . . Prevented . | . . . . . Kills | -11 -10 -10 -9 -9 ------- Run | Scr Mat Min Mat Min Combat Hostiles Destroyed 6 | . . 1 5 . Melee 2 | . . 1 1 . Cannons 4 | . . . 4 . Classes Destroyed 5 | . . 1 4 . Recycler 1 | . . . 1 . Mechanic 1 | . . . 1 . Watcher 1 | . . . 1 . Grunt 4 | . . 1 3 . Sentry 2 | . . . 2 . Best Kill Streak 3 | . . 1 3 . Combat Bots Only 3 | . . 1 3 . Max Kills in Single Turn 1 | . . 1 1 . Gunslinging . | . . . . . Exploded . | . . . . . Melee 1 | . . 1 1 . Uniques/NPCs Destroyed . | . . . . . Combat | -11 -10 -10 -9 -9 -------- Run | Scr Mat Min Mat Min Damage Taken 1827 | . 690 42 436 659 Core 462 | . 101 27 61 273 Absorbed by Shields . | . . . . . Core Remaining (%) 74 | 100 . 48 . . Volleys Fired 27 | . . . 25 2 Largest 2 | . . . 2 1 Hottest 88 | . . . 88 68 Shots Fired 43 | . . . 41 2 Gun 16 | . . . 16 . Cannon 27 | . . . 25 2 Launcher . | . . . . . Special . | . . . . . Kinetic 16 | . . . 16 . Thermal 27 | . . . 25 2 Explosive . | . . . . . Electromagnetic . | . . . . . Robot Hit Streak 9 | . . . 9 2 Robot Miss Streak 2 | . . . 2 1 Penetration Max . | . . . . . Secondary Targets . | . . . . . Shots Hit Robots 31 | . . . 30 1 Core Hits 13 | . 2 . 11 . Critical Kills . | . . . . . Critical Parts Destroyed . | . . . . . Critical Strikes . | . . . . . Melee Attacks . | . . . . . Impact . | . . . . . Slashing . | . . . . . Piercing . | . . . . . Sneak Attacks . | . . . . . Combat Hostiles . | . . . . . Follow-up Attacks . | . . . . . Damage Inflicted 563 | . 5 5 512 41 Guns 96 | . . . 96 . Cannons 454 | . . . 413 41 Explosions . | . . . . . Melee . | . . . . . Ramming 13 | . 5 5 3 . Kinetic 96 | . . . 96 . Thermal 454 | . . . 413 41 Explosive . | . . . . . Electromagnetic . | . . . . . Impact . | . . . . . Slashing . | . . . . . Piercing . | . . . . . Highest Corruption 4 | . . . . 4 Average Corruption 4 | . . . . 4 Corruption Purged . | . . . . . Corruption Blocked . | . . . . . Overload Shots . | . . . . . Overflow Damage . | . . . . . Projectiles . | . . . . . Explosions . | . . . . . Melee . | . . . . . Knockbacks . | . . . . . Impact . | . . . . . Kinetic . | . . . . . Secondary . | . . . . . Self-Inflicted Damage . | . . . . . Shots . | . . . . . Rammed 1 | . . 1 . . Targets Rammed 8 | . 4 2 2 . Kicked 4 | . 4 . . . Crushed 3 | . . 1 2 . Highest Temperature 269 | . 9 . 269 . Average Temperature 92 | . 9 . 93 . Received Heat Transfer 446 | . 177 24 225 20 Effects 1 | . . . 1 . Interference 1 | . . . 1 . Siege Activations . | . . . . . Robots Corrupted . | . . . . . Combat Hostiles . | . . . . . Parts Fried . | . . . . . Impact Corruptions . | . . . . . Robots Melted . | . . . . . Combat Hostiles . | . . . . . Parts Melted 1 | . . . 1 . Heat Transferred 814 | . . . 740 74 Parts Sabotaged . | . . . . . Parts Stolen . | . . . . . Parts Stripped . | . . . . . Power Chain Reactions . | . . . . . Missiles Intercepted . | . . . . . Alert | -11 -10 -10 -9 -9 ------- Run | Scr Mat Min Mat Min Peak Influence 208 | . 170 74 208 96 Initial 81 | . . 54 28 81 Average 85 | . 100 54 119 81 Maximum Alert Level 1 | . . . 1 . Low Security (%) 95 | 100 100 100 85 100 Level 1 4 | . . . 14 . Level 2 . | . . . . . Level 3 . | . . . . . Level 4 . | . . . . . Level 5 . | . . . . . High Security . | . . . . . Max Security . | . . . . . Squads Dispatched 1 | . 1 . . . Investigation . | . . . . . Extermination . | . . . . . Reinforcement 1 | . 1 . . . Assault . | . . . . . Garrison . | . . . . . Intercept . | . . . . . Searches Triggered . | . . . . . Construction Impeded . | . . . . . Haulers Reinforced . | . . . . . Active Scanning Responses . | . . . . . Cargo Convoy Interrupts . | . . . . . Stealth | -11 -10 -10 -9 -9 --------- Run | Scr Mat Min Mat Min Distress Signals 3 | . 1 . 2 . Communications Jammed . | . . . . . Distress Signals . | . . . . . Times Spotted 43 | . 14 2 9 18 Peak Tracking Total 12 | . 8 2 6 12 Tactical Retreats 4 | . 4 . . . Traps | -11 -10 -10 -9 -9 ------- Run | Scr Mat Min Mat Min Traps Triggered . | . . . . . Indirectly . | . . . . . Trap Hack Attempts . | . . . . . Triggered . | . . . . . Disarmed . | . . . . . Reprogrammed 4 | . 4 . . . Reused 3 | . 3 . . . Traps Extracted . | . . . . . Installed . | . . . . . Triggered 3 | . 3 . . . Machines | -11 -10 -10 -9 -9 ---------- Run | Scr Mat Min Mat Min Machines Disabled . | . . . . . Max in Single Turn . | . . . . . Machines Sabotaged . | . . . . . Overloaded Fab Kills . | . . . . . Hacking | -11 -10 -10 -9 -9 --------- Run | Scr Mat Min Mat Min Machines Accessed 3 | . 1 . 2 . Terminals 3 | . 1 . 2 . Fabricators . | . . . . . Repair Stations . | . . . . . Recycling Units . | . . . . . Scanalyzers . | . . . . . Garrison Access . | . . . . . Total Hacks 7 | . 3 . 4 . Successful 4 | . 2 . 2 . Failed 3 | . 1 . 2 . Catastrophic . | . . . . . Database Lockouts . | . . . . . Manual 1 | . . . 1 . Terminals 7 | . 3 . 4 . Fabricators . | . . . . . Repair Stations . | . . . . . Recycling Units . | . . . . . Scanalyzers . | . . . . . Garrison Access . | . . . . . Terminal Hacks 4 | . 2 . 2 . Branch Access Points 1 | . . . 1 . Locate Traps 1 | . 1 . . . Reprogram Traps 1 | . 1 . . . Zone Layout 1 | . . . 1 . Fabricator Hacks . | . . . . . Repair Station Hacks . | . . . . . Recycling Unit Hacks . | . . . . . Scanalyzer . | . . . . . Garrison Access Hacks . | . . . . . Unauthorized Hacks . | . . . . . Terminals . | . . . . . Fabricators . | . . . . . Repair Stations . | . . . . . Recycling Units . | . . . . . Scanalyzers . | . . . . . Garrison Access . | . . . . . Data Cores Recovered . | . . . . . Used . | . . . . . Hacking Detections 3 | . 1 . 2 . Full Trace Events 1 | . . . 1 . Feedback Events . | . . . . . Feedback Blocked . | . . . . . Robot Schematics Acquired . | . . . . . Robots Built . | . . . . . Authchips . | . . . . . Time . | . . . . . Total Robot Build Rating . | . . . . . Part Schematics Acquired . | . . . . . Parts Built . | . . . . . Authchips . | . . . . . Time . | . . . . . Total Part Build Rating . | . . . . . Parts Repaired . | . . . . . Time . | . . . . . Parts Recycled . | . . . . . Recycled Matter . | . . . . . Retrieved Matter . | . . . . . Retrieved Components . | . . . . . Parts Scanalyzed . | . . . . . Part Schematics Acquired . | . . . . . Parts Damaged . | . . . . . Bothacking | -11 -10 -10 -9 -9 ------------ Run | Scr Mat Min Mat Min Used RIF Installer . | . . . . . Robots Hacked . | . . . . . Non-combat . | . . . . . Combat . | . . . . . Robot Hacks Applied . | . . . . . Relay Couplers Released . | . . . . . Fabnet Peak Effective % . | . . . . . Robots Rewired . | . . . . . Allies Hacked . | . . . . . Hacks Repelled . | . . . . . Allies | -11 -10 -10 -9 -9 -------- Run | Scr Mat Min Mat Min Total Allies . | . . . . . Largest Group . | . . . . . Highest-Rated Group . | . . . . . Highest-Rated Ally . | . . . . . Total Orders . | . . . . . Ally Attacks . | . . . . . Total Damage . | . . . . . Kills . | . . . . . Allies Corrupted . | . . . . . Allies Melted . | . . . . . Intel | -11 -10 -10 -9 -9 ------- Run | Scr Mat Min Mat Min Robot Analysis Total . | . . . . . Derelict Logs Recovered 1 | . . 1 . . Drone Launches . | . . . . . Drone Recoveries . | . . . . . Exploration | -11 -10 -10 -9 -9 ------------- Run | Scr Mat Min Mat Min Turns Passed 743 | 45 196 221 239 42 Spaces Moved 442 | 36 143 129 102 32 Core 17 | . . . . 17 Treads 285 | . 39 129 102 15 Legs 140 | 36 104 . . . Wheels . | . . . . . Hover . | . . . . . Flight . | . . . . . Fastest Speed 50 | 120 120 160 160 50 Average Speed 143 | 120 131 160 160 104 Slowest Speed 190 | 120 190 160 160 160 Overloaded Moves . | . . . . . Propulsion Burnouts . | . . . . . Robots Hopped . | . . . . . Cave-ins Triggered . | . . . . . Exploration Rate (%) 23 | 3 41 43 20 8 Regions Visited 4 Branch Regions 2 Pre-discovered Areas . | . . . . . Known Exits Taken 1 | . . . 1 . Unknown Exits Taken 3 | 1 1 1 . . Scrap Searched 2 | . . 2 . . Spaces Dug . | . . . . . Terrain Destroyed . | . . . . . Melee . | . . . . . Projectile . | . . . . . AOE . | . . . . . Terrain Rammed . | . . . . . Walls Destroyed . | . . . . . Machines Disabled . | . . . . . Actions | -11 -10 -10 -9 -9 --------- Run | Scr Mat Min Mat Min Total 506 | 38 150 143 136 39 Wait 17 | 3 . 13 1 . Move 438 | 35 142 128 101 32 Hop . | . . . . . Pick Up . | . . . . . Fast Attach 4 | . . . 4 . Attach 6 | . 4 . . 2 Detach 3 | . . . 1 2 Swap 2 | . . . 2 . Drop 1 | . . . . 1 Fire 27 | . . . 25 2 Melee . | . . . . . Ram . | . . . . . Kick 4 | . 4 . . . Crush 4 | . . 2 2 . Escape Stasis . | . . . . . Rewire . | . . . . . Trap . | . . . . . Miscellaneous . | . . . . . Route ------- -11/Scrapyard -10/Materials (discovered 2 exits: *Mat / [*Min]) -10/Mines -9/Materials -9/Mines History --------- Turn | Location | Event 1 | -11/Scrapyard | Discovered new exit (range 3) 46 | -11/Scrapyard | Entered Materials 92 | -10/Materials | Discovered new exit (range 14) 221 | -10/Materials | Discovered new exit (range 14) 240 | -10/Materials | Lost 4 parts (1p2n1w) 242 | -10/Materials | Entered Mines 265 | -10/Mines | Learned Materials security intel 308 | -10/Mines | Build established: Mutant 359 | -10/Mines | Joined a pair of Derelicts in attacking an 0b10 outpost 449 | -10/Mines | Discovered new exit (range 9) 463 | -10/Mines | Core integrity fell below 50% 463 | -10/Mines | Entered Materials 463 | -9/Materials | Evolved 2 slots: Propulsion x1, Utility x1 483 | -9/Materials | Identified exit to Mines 702 | -9/Materials | Entered Mines 703 | -9/Mines | Assembled infested the area 739 | -9/Mines | Core integrity fell below 50% 744 | -9/Mines | Core integrity fell below 20% 744 | -9/Mines | Self-destructed Last Messages --------------- 00725_ D-53 Grenadier unfolds itself. 00727_ Lgt. Treads destroyed. 00732_ Dropped Ion Engine. 00733_ The unstable cave ceiling collapses. 00734_ Lgt. Treads destroyed. 00734_ Particle Cannon destroyed. 00734_ Imp. Heat Sink destroyed. 00735_ The unstable cave ceiling collapses. 00738_ as-19280 destroyed. 00739_ Acquired 3 matter. 00740_ Aluminum Leg destroyed. 00740_ System corrupted by crushing effect (+4). 00740_ Knocked back. 00740_ as-05777 destroyed. 00741_ as-64035 destroyed. 00741_ as-51573 destroyed. 00741_ as-34314 destroyed. 00741_ as-46402 destroyed. 00743_ as-11607 destroyed. 00743_ as-04884 destroyed. Map ----- +----------------------------------------------------+ | ?????????????????????????????? | | ?????????????????????????????? | | ?????????????????????????????? | | ?????????????????????????????? | | ?????????????????????????????? | | ?????????????????????????????? | | ???#######???????????????????? | | ??## # ##????##????????????? | | ?## ###?? ?????????????? | | ?# #?? #?????????????? | | ??# ## ##????????????? | | ?## # # ##???????????? | | ?# # ######??????? | | ?# " ??????? | | ?## d "%" ??????? | | ??# d ###### ???????? | | ??## ###?????????????? | | ???# ##???????????????? | | ???# #???????????????? | | ???# #???????????????? | | ??## #???????????????? | | ??# #???????????????? | | ??# ##???????????????? | | ??# #?????????????????? | | ??# #?????????????????? | | ??## @ ##?????????????????? | | ???# %##??????????????????? | | ???# [ a ????????????????? | | ???## ## aa a ????????????? | | ????####?# a #???????????? | | ??????????##### #???????????? | | ?????????????????#???????????? | | ?????????????????????????????? | | ?????????????????????????????? | | ?????????????????????????????? | | ?????????????????????????????? | | ?????????????????????????????? | | ?????????????????????????????? | | ?????????????????????????????? | | ?????????????????????????????? | | ?????????????????????????????? | | ?????????????????????????????? | | ?????????????????????????????? | | ?????????????????????????????? | | ?????????????????????????????? | | ?????????????????????????????? | | | | | | | | | +----------------------------------------------------+ Best States ------------- Heat Dissipation 42 Energy Generation 10 Energy Capacity 250 Matter Stores 300 Matter Capacity 300 Sight Range 16 Terrain Scan Density 10 Evasion (%) 55 Recoil Reduction 3 Item Schematics ----------------- None Robot Schematics ------------------ None Fabricated ------------ Nothing Alien Tech Used ----------------- None Achievements -------------- None Challenges ------------ None Game ------ Seed LegThermoelectricGreatsword Manual? 0 Play Time 00:05:26 Cumulative 1245.4 hours Start 2022.10.29 @ 11:23:27 End 2022.10.29 @ 11:28:00 Sessions 1 Manual Loads 0 Difficulty Rogue Special Mode None Game No. 865 Rogue 861 Adventurer 4 Explorer 0 Win Type - Total 136 Types 102/10/8/5/2/1/1/4/3 Lore% 95 Gallery% 98 Achievement% 98 Wizard Run 0 Options --------- ASCII 0 Keyboard 1 Movement Vi Keybinds 0 Fullscreen 0 Font 20/X11 Map View 76x50 Tactical HUD 1 Map Filters NONE Filters NONE Steam 1 RUN: 38bbe195-4a1b-4f64-b80d-2b0ab24b4317